fUST/lending_fUST_20250804
["ID","MTS","AMOUNT","RATE_DAILY","PERIOD"]
[377080594,1754251842691,-226.81938661,0.0005,120]
[377080595,1754251842701,-153.0,0.000501,120]
[377080596,1754251842710,-200.0,0.00050123,120]
[377080597,1754251842719,-2259.06,0.000502,14]
[377080598,1754251842729,-750.0,0.00050264,7]
[377080599,1754251842739,-13639.8656634,0.0005049,4]
[377080600,1754251842748,-7310.05617589,0.000505,120]
[377080601,1754251842758,-200.0,0.00050545,120]
[377080602,1754251842767,-206.0,0.0005058,30]
[377080603,1754251842776,-11214.83,0.00050806,120]
[377080604,1754251842786,-631.58831866,0.00050812,7]
[377080606,1754251842795,-250.0,0.0005087,90]
[377080607,1754251842805,-300.0,0.0005087,90]
[377080608,1754251842813,-151.0,0.0005087,90]
[377080609,1754251842822,-500.0,0.00050959,60]
[377080610,1754251842838,-150.0,0.00051,120]
[377080611,1754251842848,-5000.0,0.00051,120]
[377080612,1754251842857,-250.0,0.00051069,85]
[377080613,1754251842866,-300.0,0.00051069,85]
[377080614,1754251842875,-151.0,0.00051069,85]
[377080615,1754251842884,-151.0,0.00051299,120]
[377080616,1754251842894,-151.0,0.00051299,120]
[377080618,1754251842903,-13639.8656634,0.0005159,4]
[377080622,1754251842912,-5789.35806757,0.000516,14]
[377080624,1754251842924,-1072.37047821,0.000516,14]
[377080627,1754251842935,-523.6544544,0.000516,14]
[377080653,1754251843108,-151.0,0.00044195,120]
[377080656,1754251843118,-132.85,0.000516,14]
[377080659,1754251843133,-9002.27964194,0.000516,14]
[377080674,1754251843404,-151.0,0.00046696,120]
[377080675,1754251843414,-151.0,0.000484,120]
[377080676,1754251843423,-151.0,0.000499,120]
[377080677,1754251843432,-151.0,0.00051299,120]
[377080678,1754251843441,-10813.01226897,0.000516,14]
[377080679,1754251843453,-7636.17508891,0.000516,14]
[377080680,1754251843462,-151.0,0.000516,120]
[377080681,1754251843471,-151.0,0.000516,118]
[377080682,1754251843482,-11214.83,0.00051628,120]
[377080685,1754251843491,-153.0,0.000517,120]
[377080686,1754251843580,-200.0,0.00051797,120]
[377080687,1754251843590,-206.0,0.0005199,30]
[377080688,1754251843599,-1000.0,0.00051999,120]
[377080689,1754251843608,-504.7157433,0.00052,60]
[377080690,1754251843616,-1000.0,0.00052,120]
[377080691,1754251843625,-300.0,0.00052,120]
[377080692,1754251843634,-482.01,0.00052,14]
[377080693,1754251843644,-13639.8656634,0.00052045,4]
[377080694,1754251843653,-225.0,0.00052055,5]
[377080695,1754251843662,-416.98,0.00052055,5]
[377080696,1754251843671,-400.0,0.00052055,120]
[377080697,1754251843680,-500.0,0.00052055,60]
[377080698,1754251843689,-500.98826256,0.00052055,30]
[377080699,1754251843699,-182.03,0.00052157,14]
[377080700,1754251843708,-200.0,0.00052338,90]
[377080701,1754251843718,-200.0,0.00052338,90]
[377080702,1754251843727,-200.0,0.00052338,90]
[377080703,1754251843736,-200.0,0.00052338,90]
[377080704,1754251843745,-200.0,0.00052338,90]
[377080705,1754251843755,-200.0,0.00052338,90]
[377080706,1754251843765,-200.0,0.00052338,90]
[377080707,1754251843774,-200.0,0.00052338,90]
[377080708,1754251843783,-200.0,0.00052338,90]
[377080709,1754251843792,-200.0,0.00052338,90]
[377080710,1754251843802,-304.0,0.00052338,90]
[377080711,1754251843811,-11214.83,0.0005245,120]
[377080712,1754251843820,-182.03,0.00052715,14]
[377080713,1754251843829,-151.0,0.00052952,120]
[377080714,1754251843839,-5000.0,0.00053,120]
[377080715,1754251843848,-255000.0,0.00053,120]
[377080716,1754251843858,-724.0,0.00053,120]
[377080717,1754251843867,-151.0,0.00053,120]
[377080718,1754251843876,-151.0,0.00053,120]
[377080719,1754251843886,-500.0,0.00053151,60]
[377080720,1754251843895,-200.0,0.0005326,120]
[377080721,1754251843904,-11214.83,0.00053272,120]
[377080722,1754251843914,-2729.85338012,0.000533,120]
[377080723,1754251843923,-1865.65,0.000533,7]
[377080724,1754251843932,-153.0,0.000533,120]
[377080725,1754251843942,-500.0,0.00053311,15]
[377080726,1754251843956,-281.96,0.00053311,15]
[377080727,1754251843965,-206.0,0.0005337,30]
[377080728,1754251843974,-206.0,0.0005339,30]
[377080729,1754251843984,-1949.5202418,0.0005348,4]
[377089095,1754251946897,159.957042,0.00013699,2]
[377092305,1754251981017,-735.64780631,0.00029729,2]
[377094490,1754252003320,241.0,0.00028952,120]
[377101100,1754252075897,151.0,0.00024,120]
[377101222,1754252077277,151.0,0.000262,120]
[377101370,1754252078676,151.0,0.000284,120]
[377106695,1754252250879,200.0,0.00027789,120]
[377106697,1754252315675,154.0,0.00024,120]
[377106698,1754252317425,154.0,0.000263,120]
[377106699,1754252318839,154.0,0.000287,120]
[377106702,1754252434662,152.0,0.00024,120]
[377106703,1754252436095,152.0,0.000264,120]
[377106704,1754252437539,152.0,0.000288,120]
[377106705,1754252551612,152.0,0.00024,120]
[377106706,1754252553028,152.0,0.000263,120]
[377106707,1754252554429,152.0,0.000285,120]
[377106740,1754252793292,155.0,0.00024,120]
[377106741,1754252795155,-184.18210763,0.00035153,14]
[377106742,1754252796958,155.0,0.000264,120]
[377106744,1754252798344,155.0,0.000288,120]
[377106746,1754252868328,10000.0,0.00029018,30]
[377106752,1754252890763,10000.0,0.00022,15]
[377106854,1754252922589,214.72339961,0.00029018,120]
[377106857,1754252927848,360.58035419,0.000275,120]
[377106858,1754252929147,450.8,0.00019,2]
[377106893,1754252982003,5000.0,0.00026,10]
[377106927,1754253032573,-155.0,0.000313,120]
[377106928,1754253032583,-155.0,0.000337,120]
[377106929,1754253032593,-159.6986114,0.00034978,30]
[377106930,1754253032602,-732.4114473,0.00034978,30]
[377106931,1754253032612,-155.0,0.000361,120]
[377106932,1754253032622,-348.9007,0.00036284,2]
[377106935,1754253032631,-169.058825,0.00036421,2]
[377106938,1754253032640,-279.55,0.000368,2]
[377106940,1754253032650,-200.0,0.00036912,120]
[377106942,1754253032659,-231.62108626,0.00037586,2]
[377106944,1754253032668,-160.0,0.00037591,2]
[377106947,1754253032678,-3220.99556832,0.00037595,2]
[377106950,1754253032688,-1836.73161739,0.00037974,2]
[377106954,1754253032701,-8163.26838261,0.00037974,2]
[377106956,1754253032710,-159.957042,0.00038356,2]
[377106957,1754253032719,-160.0,0.00038475,2]
[377106959,1754253032729,-155.0,0.000385,120]
[377106961,1754253032740,-200.0,0.00038718,120]
[377106964,1754253032749,-500.0,0.00039299,120]
[377106967,1754253032759,-200.0,0.00039946,120]
[377106969,1754253032768,-1000.0,0.0004,120]
[377106970,1754253032778,-2000.0,0.0004,26]
[377106971,1754253032788,-500.0,0.0004,2]
[377106973,1754253032797,-633.28333998,0.0004,30]
[377106974,1754253032806,-270.54938199,0.0004,10]
[377106977,1754253032816,-300.0,0.0004,7]
[377106979,1754253032826,-407.0,0.00040121,2]
[377106981,1754253032835,-155.0,0.000409,120]
[377106983,1754253032849,-1000.0,0.00041,120]
[377106985,1754253032858,-977.20381926,0.00041,48]
[377106987,1754253032867,-200.0,0.00041354,30]
[377106989,1754253032877,-200.0,0.00041354,30]
[377106990,1754253032886,-200.0,0.00041354,30]
[377106991,1754253032896,-200.0,0.00041354,30]
[377106992,1754253032905,-1000.0,0.00042,120]
[377106993,1754253032914,-160.0,0.00042207,2]
[377106994,1754253032924,-517.67767499,0.00042485,2]
[377106995,1754253032938,-151.0,0.0004256,2]
[377106996,1754253032948,-151.0,0.0004256,2]
[377106997,1754253032957,-151.0,0.0004256,2]
[377106998,1754253032967,-151.0,0.0004256,2]
[377106999,1754253032976,-151.0,0.0004256,2]
[377107000,1754253032988,-151.0,0.0004256,2]
[377107001,1754253032997,-151.0,0.0004256,2]
[377107002,1754253033007,-151.0,0.0004256,2]
[377107003,1754253033016,-151.0,0.0004256,2]
[377107004,1754253033025,-151.0,0.0004256,2]
[377107005,1754253033035,-151.0,0.0004256,2]
[377107006,1754253033044,-151.0,0.0004256,2]
[377107007,1754253033053,-151.0,0.0004256,2]
[377107008,1754253033064,-151.0,0.0004256,2]
[377107009,1754253033073,-366.56,0.00042564,10]
[377107010,1754253033083,-500.0,0.00042573,10]
[377107011,1754253033093,-500.0,0.00042574,31]
[377107012,1754253033104,-500.0,0.00042574,2]
[377107013,1754253033113,-1065.77564613,0.00042574,31]
[377107014,1754253033122,-500.0,0.00042574,31]
[377107015,1754253033132,-369.99551319,0.00042574,7]
[377107016,1754253033142,-180.47315701,0.00042574,2]
[377107017,1754253033151,-500.0,0.00042574,31]
[377107018,1754253033161,-1065.77564613,0.00042574,31]
[377107019,1754253033170,-500.0,0.00042574,2]
[377107020,1754253033180,-537.32962528,0.00042574,2]
[377107021,1754253033190,-500.0,0.00042574,31]
[377107022,1754253033199,-500.0,0.00042574,2]
[377107023,1754253033209,-1065.77564613,0.00042574,31]
[377107024,1754253033218,-500.0,0.00042574,31]
[377107025,1754253033228,-182.86673587,0.00042574,31]
[377107026,1754253033239,-500.0,0.00042574,2]
[377107027,1754253033249,-500.0,0.00042574,2]
[377107028,1754253033259,-1065.77564613,0.00042574,31]
[377107029,1754253033268,-500.0,0.00042574,31]
[377107030,1754253033279,-583.92226054,0.00042574,31]
[377107031,1754253033289,-1065.77564613,0.00042574,31]
[377107032,1754253033299,-1065.77564613,0.00042574,31]
[377107033,1754253033309,-1065.77564613,0.00042574,31]
[377107034,1754253033319,-500.0,0.00042574,31]
[377107035,1754253033330,-1065.77564613,0.00042574,31]
[377107036,1754253033339,-500.0,0.00042574,31]
[377107037,1754253033349,-1065.77564613,0.00042574,31]
[377107038,1754253033358,-1065.77564613,0.00042574,31]
[377107039,1754253033368,-1065.77564613,0.00042574,31]
[377107040,1754253033378,-500.0,0.00042574,31]
[377107041,1754253033388,-1065.77564613,0.00042574,31]
[377107042,1754253033398,-1065.77564613,0.00042574,31]
[377107043,1754253033407,-500.0,0.00042574,31]
[377107044,1754253033417,-1065.77564613,0.00042574,31]
[377107045,1754253033427,-1065.77564613,0.00042574,31]
[377107046,1754253033436,-1065.77564613,0.00042574,31]
[377107047,1754253033446,-1065.77564613,0.00042574,31]
[377107048,1754253033457,-1065.77564613,0.00042574,31]
[377107049,1754253033466,-1065.77564613,0.00042574,31]
[377107050,1754253033476,-1065.77564613,0.00042574,31]
[377107051,1754253033486,-1065.77564613,0.00042574,31]
[377107052,1754253033496,-1065.77564613,0.00042574,31]
[377107053,1754253033506,-1065.77564613,0.00042574,31]
[377107054,1754253033515,-1065.77564613,0.00042574,31]
[377107055,1754253033525,-1065.77564613,0.00042574,31]
[377107056,1754253033535,-1065.77564613,0.00042574,31]
[377107057,1754253033546,-1065.77564613,0.00042574,31]
[377107058,1754253033556,-1065.77564613,0.00042574,31]
[377107059,1754253033566,-1065.77564613,0.00042574,31]
[377107060,1754253033576,-1065.77564613,0.00042574,31]
[377107061,1754253033586,-1065.77564613,0.00042574,31]
[377107062,1754253033596,-1065.77564613,0.00042574,31]
[377107063,1754253033605,-1065.77564613,0.00042574,31]
[377107064,1754253033615,-1065.77564613,0.00042574,31]
[377107065,1754253033624,-1065.77564613,0.00042574,31]
[377107066,1754253033634,-1065.77564613,0.00042574,31]
[377107067,1754253033644,-1065.77564613,0.00042574,31]
[377107068,1754253033654,-1065.77564613,0.00042574,31]
[377107069,1754253033664,-1065.77564613,0.00042574,31]
[377107070,1754253033674,-1065.77564613,0.00042574,31]
[377107071,1754253033684,-1065.77564613,0.00042574,31]
[377107072,1754253033695,-1065.77564613,0.00042574,31]
[377107073,1754253033705,-1065.77564613,0.00042574,31]
[377107074,1754253033715,-1065.77564613,0.00042574,31]
[377107075,1754253033725,-1065.77564613,0.00042574,31]
[377107076,1754253033816,-1065.77564613,0.00042574,31]
[377107077,1754253033827,-1065.77564613,0.00042574,31]
[377107078,1754253033838,-1065.77564613,0.00042574,31]
[377107079,1754253033851,-1065.77564613,0.00042574,31]
[377107080,1754253033861,-1065.77564613,0.00042574,31]
[377107081,1754253033871,-1065.77564613,0.00042574,31]
[377107082,1754253033881,-1065.77564613,0.00042574,31]
[377107083,1754253033890,-1065.77564614,0.00042574,31]
[377107084,1754253033900,-1065.77564614,0.00042574,31]
[377107085,1754253033909,-1065.77564614,0.00042574,31]
[377107086,1754253033919,-1065.77564614,0.00042574,31]
[377107087,1754253033929,-1065.77564614,0.00042574,31]
[377107088,1754253033939,-1065.77564614,0.00042574,31]
[377107089,1754253033950,-1065.77564614,0.00042574,31]
[377107090,1754253033960,-1065.77564614,0.00042574,31]
[377107091,1754253033971,-1065.77564614,0.00042574,31]
[377107092,1754253033981,-1065.77564614,0.00042574,31]
[377107093,1754253033993,-1065.77564614,0.00042574,31]
[377107094,1754253034005,-1065.77564614,0.00042574,31]
[377107095,1754253034015,-1065.77564614,0.00042574,31]
[377107096,1754253034025,-1065.77564614,0.00042574,31]
[377107097,1754253034036,-1065.77564614,0.00042574,31]
[377107098,1754253034047,-1065.77564614,0.00042574,31]
[377107099,1754253034057,-1065.77564614,0.00042574,31]
[377107100,1754253034067,-1065.77564614,0.00042574,31]
[377107101,1754253034077,-1065.77564614,0.00042574,31]
[377107102,1754253034087,-1065.77564614,0.00042574,31]
[377107103,1754253034096,-1065.77564614,0.00042574,31]
[377107104,1754253034106,-1065.77564614,0.00042574,31]
[377107105,1754253034116,-703.97190437,0.00042574,31]
[377107106,1754253034130,-361.80374177,0.00042574,31]
[377107107,1754253034140,-1065.77564614,0.00042574,31]
[377107108,1754253034150,-1065.77564614,0.00042574,31]
[377107109,1754253034160,-1065.77564614,0.00042574,31]
[377107110,1754253034169,-1065.77564614,0.00042574,31]
[377107111,1754253034180,-1065.77564614,0.00042574,31]
[377107112,1754253034190,-1065.77564614,0.00042574,31]
[377107113,1754253034200,-640.3396336,0.00042574,31]
[377107114,1754253034216,-425.43601254,0.00042574,31]
[377107115,1754253034226,-192.57398746,0.00042574,31]
[377107171,1754253038638,-873.20165868,0.00042574,31]
[377107174,1754253038648,-1065.77564614,0.00042574,31]
[377107176,1754253038657,-1065.77564614,0.00042574,31]
[377107178,1754253038667,-1065.77564614,0.00042574,31]
[377107189,1754253038757,-1065.77564614,0.00042574,31]
[377107190,1754253038766,-1065.77564614,0.00042574,31]
[377107192,1754253038776,-12917.97347304,0.00042575,3]
[377108427,1754253103764,6335.34,0.0003,2]
[377108431,1754253173081,773.45238311,0.0003,2]
[377108433,1754253210778,159.915918,0.00013699,2]
[377108435,1754253277948,161.014893,0.00025778,2]
[377108436,1754253278433,158.77724664,0.00026044,2]
[377108437,1754253388698,154.0,0.00024,120]
[377108438,1754253390104,154.0,0.000268,120]
[377108439,1754253391508,154.0,0.000296,120]
[377108440,1754253449383,3399.6500922,0.0003,2]
[377108441,1754253457869,3705.08534767,0.0003,2]
[377108446,1754253772677,386.72619155,0.0003,2]
[377108447,1754254018110,-154.0,0.000323,120]
[377108448,1754254018132,-29.45912804,0.000351,120]
[377108449,1754254022668,193.36309578,0.0003,2]
[377108452,1754254150772,159.878943,0.00013699,2]
[377108512,1754254231988,-159.878943,0.00034247,2]
[377108514,1754254231999,-124.54087196,0.000351,120]
[377108516,1754254232008,-203.28126122,0.00035114,2]
[377108518,1754254232018,-294.21,0.00035214,7]
[377108520,1754254232028,-153.0,0.00036593,30]
[377108522,1754254232037,-153.0,0.00036593,30]
[377108525,1754254232048,-1227.72926851,0.000369,35]
[377108527,1754254232059,-361.6029063,0.00037831,2]
[377108529,1754254232068,-1200.0,0.00037898,3]
[377108531,1754254232078,-245.0,0.00037899,2]
[377108533,1754254232088,-154.0,0.000379,120]
[377108535,1754254232098,-239.47774964,0.000379,2]
[377108537,1754254232108,-1143.4117538,0.00037957,35]
[377108539,1754254232118,-71.37721308,0.00038045,2]
[377109075,1754254237699,-169.69928292,0.00038045,2]
[377109077,1754254237710,-251.59,0.00039,2]
[377109079,1754254237720,-1000.0,0.0004,120]
[377109081,1754254237729,-407.0,0.00040412,2]
[377109083,1754254237739,-424.908,0.00040412,2]
[377109085,1754254237748,-241.644,0.00040412,2]
[377109087,1754254237758,-150.0,0.00040412,2]
[377109089,1754254237768,-154.0,0.000407,120]
[377109091,1754254237778,-630.87478278,0.00041,120]
[377109103,1754254237894,-369.12521722,0.00041,120]
[377109104,1754254237912,-200.0,0.00041752,30]
[377109105,1754254237922,-200.0,0.00041752,30]
[377109106,1754254237931,-200.0,0.00041752,30]
[377109107,1754254237941,-200.0,0.00041752,30]
[377109108,1754254237950,-1000.0,0.00042,120]
[377109109,1754254237960,-8000.0,0.00042,2]
[377109110,1754254237970,-176.59,0.00042,63]
[377109111,1754254237979,-1723.46535464,0.00042355,28]
[377109112,1754254237988,-1153.2375585,0.00042365,2]
[377109113,1754254237998,-1153.23755849,0.00042392,2]
[377109114,1754254238007,-1153.23755849,0.0004242,2]
[377109115,1754254238017,-1153.23755849,0.00042447,2]
[377109116,1754254238026,-294.2662048,0.00042454,31]
[377109117,1754254238036,-508.96855191,0.00042454,15]
[377109118,1754254238045,-500.0,0.00042454,2]
[377109119,1754254238054,-605.25164421,0.00042454,31]
[377109120,1754254238064,-500.0,0.00042454,2]
[377109121,1754254238073,-500.0,0.00042454,31]
[377109122,1754254238083,-500.0,0.00042454,31]
[377109123,1754254238092,-500.0,0.00042454,7]
[377109124,1754254238102,-500.0,0.00042454,2]
[377109125,1754254238111,-500.0,0.00042454,2]
[377109126,1754254238120,-500.0,0.00042454,31]
[377109127,1754254238130,-500.0,0.00042454,2]
[377109128,1754254238139,-500.0,0.00042454,31]
[377109129,1754254238149,-500.0,0.00042454,31]
[377109130,1754254238158,-641.0005442,0.00042454,2]
[377109131,1754254238167,-500.0,0.00042454,7]
[377109132,1754254238177,-500.0,0.00042454,2]
[377109133,1754254238187,-500.0,0.00042454,31]
[377109134,1754254238196,-500.0,0.00042454,2]
[377109135,1754254238206,-500.0,0.00042454,2]
[377109136,1754254238215,-510.37697824,0.00042454,31]
[377109137,1754254238225,-481.22056053,0.00042454,31]
[377109138,1754254238234,-478.98364421,0.00042454,7]
[377109139,1754254238244,-500.0,0.00042454,2]
[377109140,1754254238254,-500.0,0.00042454,31]
[377109141,1754254238263,-500.0,0.00042454,31]
[377109142,1754254238273,-500.0,0.00042454,2]
[377109144,1754254238283,-500.0,0.00042454,31]
[377109145,1754254238292,-500.0,0.00042454,2]
[377109147,1754254238302,-500.0,0.00042454,31]
[377109149,1754254238311,-500.0,0.00042454,2]
[377109151,1754254238320,-500.0,0.00042454,31]
[377109153,1754254238330,-500.0,0.00042454,2]
[377109155,1754254238339,-500.0,0.00042454,31]
[377109157,1754254238348,-500.0,0.00042454,31]
[377109159,1754254238360,-500.0,0.00042454,2]
[377109161,1754254238372,-495.56913955,0.00042454,2]
[377109163,1754254238381,-500.0,0.00042454,31]
[377109165,1754254238391,-500.0,0.00042454,2]
[377109167,1754254238402,-500.0,0.00042454,31]
[377109169,1754254238411,-500.0,0.00042454,2]
[377109171,1754254238422,-500.0,0.00042454,31]
[377109173,1754254238431,-500.0,0.00042454,31]
[377109175,1754254238442,-500.0,0.00042454,31]
[377109177,1754254238452,-500.0,0.00042454,31]
[377109180,1754254238461,-500.0,0.00042454,31]
[377109181,1754254238471,-500.0,0.00042454,2]
[377109183,1754254238481,-500.0,0.00042454,31]
[377109185,1754254238491,-500.0,0.00042454,31]
[377109187,1754254238501,-500.0,0.00042454,2]
[377109189,1754254238510,-500.0,0.00042454,31]
[377109190,1754254238520,-500.0,0.00042454,2]
[377109192,1754254238530,-500.0,0.00042454,31]
[377109193,1754254238540,-500.0,0.00042454,31]
[377109194,1754254238550,-369.11443136,0.00042454,2]
[377109195,1754254238561,-500.0,0.00042454,31]
[377109196,1754254238570,-500.0,0.00042454,31]
[377109197,1754254238580,-500.0,0.00042454,31]
[377109198,1754254238590,-500.0,0.00042454,2]
[377109199,1754254238600,-500.0,0.00042454,31]
[377109200,1754254238610,-500.0,0.00042454,2]
[377109201,1754254238619,-500.0,0.00042454,31]
[377109202,1754254238629,-500.0,0.00042454,31]
[377109203,1754254238639,-500.0,0.00042454,2]
[377109204,1754254238648,-500.0,0.00042454,31]
[377109205,1754254238657,-500.0,0.00042454,31]
[377109206,1754254238667,-500.0,0.00042454,2]
[377109207,1754254238676,-500.0,0.00042454,31]
[377109208,1754254238685,-500.0,0.00042454,31]
[377109209,1754254238695,-323.9591327,0.00042454,31]
[377109210,1754254238705,-500.0,0.00042454,2]
[377109211,1754254238715,-500.0,0.00042454,31]
[377109212,1754254238724,-500.0,0.00042454,2]
[377109213,1754254238734,-500.0,0.00042454,31]
[377109214,1754254238744,-500.0,0.00042454,2]
[377109215,1754254238753,-500.0,0.00042454,2]
[377109216,1754254238763,-500.0,0.00042454,31]
[377109217,1754254238773,-500.0,0.00042454,31]
[377109218,1754254238782,-29635.3979295,0.00042455,3]
[377109219,1754254238792,-6726.94692418,0.00042455,3]
[377109220,1754254238802,-229.72,0.00042455,30]
[377109221,1754254238811,-191.43,0.00042455,30]
[377109222,1754254238820,-159.52,0.00042455,30]
[377109223,1754254238830,-797.65,0.00042455,30]
[377109224,1754254238840,-11916.67,0.00042461,120]
[377109225,1754254238850,-330.79,0.00042463,30]
[377109226,1754254238859,-275.66,0.00042463,30]
[377109227,1754254238869,-151.0,0.00042463,30]
[377109228,1754254238878,-151.0,0.00042463,30]
[377109229,1754254238888,-151.0,0.00042463,30]
[377109230,1754254238898,-500.0,0.00042464,31]
[377109231,1754254238908,-269.60985686,0.00042464,31]
[377109232,1754254238918,-476.34,0.00042464,30]
[377109233,1754254238927,-396.95,0.00042464,30]
[377109234,1754254238937,-160.0,0.00042464,120]
[377109235,1754254238947,-1805.52108287,0.00042464,2]
[377109236,1754254238957,-207447.785506,0.00042465,3]
[377109237,1754254238967,-47088.6284693,0.00042465,3]
[377109238,1754254238977,-987.74,0.00042465,30]
[377109239,1754254238986,-823.11,0.00042465,30]
[377109240,1754254238995,-685.93,0.00042465,30]
[377109241,1754254239005,-571.61,0.00042465,30]
[377109242,1754254239015,-475.42391577,0.00042473,10]
[377109243,1754254239100,-508.10068389,0.00042473,10]
[377109244,1754254239109,-500.0,0.00042473,10]
[377109245,1754254239119,-622.73460147,0.00042473,10]
[377109246,1754254239130,-500.0,0.00042473,10]
[377109247,1754254239140,-500.0,0.00042473,7]
[377109248,1754254239149,-500.0,0.00042473,10]
[377109249,1754254239161,-500.0,0.00042473,10]
[377109250,1754254239171,-503.74849276,0.00042473,7]
[377109251,1754254239181,-500.0,0.00042473,10]
[377109252,1754254239191,-500.0,0.00042473,10]
[377109253,1754254239200,-155.0,0.00042473,120]
[377109254,1754254239210,-151.0,0.00042473,15]
[377109255,1754254239220,-500.0,0.00042474,31]
[377109256,1754254239230,-1153.23755849,0.00042474,2]
[377109257,1754254239239,-330674.76646192,0.00042475,2]
[377109258,1754254239249,-2495.04,0.000425,7]
[377109259,1754254239259,-250.0,0.00042574,3]
[377109260,1754254239269,-300.0,0.00042574,3]
[377109261,1754254239279,-151.0,0.00042574,3]
[377109262,1754254239289,-151.0,0.00042574,3]
[377109263,1754254239299,-151.0,0.00042574,3]
[377109264,1754254239308,-151.0,0.00042574,3]
[377109265,1754254239318,-151.0,0.00042574,3]
[377109266,1754254239328,-151.0,0.00042574,3]
[377109267,1754254239338,-151.0,0.00042574,3]
[377109268,1754254239349,-151.0,0.00042574,3]
[377109269,1754254239360,-151.0,0.00042574,3]
[377109270,1754254239373,-151.0,0.00042574,3]
[377109271,1754254239382,-151.0,0.00042574,3]
[377109272,1754254239393,-151.0,0.00042574,3]
[377109273,1754254239402,-500.0,0.00042584,120]
[377109274,1754254239413,-155.0,0.00042585,120]
[377109275,1754254239423,-591.28,0.000426,14]
[377109276,1754254239432,-151.0,0.00042737,30]
[377109277,1754254239443,-151.0,0.00042737,30]
[377109278,1754254239453,-151.0,0.00042737,30]
[377109279,1754254239463,-198.0,0.00042747,15]
[377109280,1754254239472,-160.0,0.00042783,2]
[377109281,1754254239482,-1000.0,0.00043,120]
[377109282,1754254239491,-151.0,0.00043011,30]
[377109283,1754254239501,-151.0,0.00043011,30]
[377109284,1754254239512,-153.53438336,0.00043011,30]
[377109285,1754254239522,-766.29760607,0.00043021,10]
[377109286,1754254239533,-1000.0,0.00043021,10]
[377109287,1754254239543,-745.79341206,0.00043021,7]
[377109288,1754254239553,-500.0,0.00043273,10]
[377109289,1754254239562,-500.0,0.00043273,10]
[377109290,1754254239572,-280.47706655,0.00043273,10]
[377109291,1754254239581,-500.0,0.00043273,10]
[377109292,1754254239591,-29635.3979295,0.00043276,3]
[377109293,1754254239600,-6726.94692418,0.00043276,3]
[377109294,1754254239610,-11916.67,0.00043283,120]
[377109295,1754254239620,-151.0,0.00043285,30]
[377109296,1754254239629,-151.0,0.00043285,30]
[377109297,1754254239639,-150.0,0.00043397,2]
[377109298,1754254239648,-154.0,0.000434,120]
[377109299,1754254239658,-407.0,0.00043412,2]
[377109301,1754254239667,-150.0,0.00043412,2]
[377109303,1754254239677,-198.0,0.00043559,30]
[377109305,1754254239687,-198.0,0.00043559,30]
[377109306,1754254239697,-816.03650993,0.00043821,10]
[377109307,1754254239706,-569.97181184,0.00043821,10]
[377109309,1754254239715,-522.08128294,0.00043821,10]
[377109311,1754254239724,-200.0,0.00043942,120]
[377109313,1754254239734,-200.0,0.00043993,120]
[377109315,1754254239743,-1000.0,0.00044,120]
[377109317,1754254239753,-600.54396759,0.00044,120]
[377109320,1754254239763,-11916.67,0.00044105,120]
[377109322,1754254239773,-151.0,0.00044916,120]
[377109324,1754254239782,-151.0,0.00044916,120]
[377109326,1754254239792,-151.0,0.00044916,120]
[377109328,1754254239801,-11916.67,0.00044927,120]